[Event "GCT Superbet Romania 2024"]
[Site "Bucharest"]
[Date "2024.06.29"]
[Round "4.1"]
[White "Nepomniachtchi, Ian"]
[Black "So, Wesley"]
[Result "1/2-1/2"]
[ECO "C65"]
[WhiteElo "2770"]
[BlackElo "2757"]
[Annotator "TA"]
[PlyCount "110"]
[EventDate "2024.06.24"]
[EventType "tourn"]
[EventCountry "ROU"]
[SourceTitle "playchess.com"]
[Source "ChessBase"]
[SourceQuality "1"]
[TimeControl "7200+30"]

{[%evp 12,110,13,4,22,7,5,13,40,12,14,17,12,0,0,0,0,0,0,0,0,0,0,-7,12,14,7,0,0,4,15,0,0,0,6,0,0,-43,-36,-51,-47,-52,-41,-91,-107,-111,-109,-110,-67,-53,0,0,0,0,0,0,0,0,0,0,0,0,0,0,0,0,8,8,17,7,8,8,15,8,8,8,8,9,9,9,9,9,9,10,10,10,10,0,0,0,0,0,8,8,8,0,8,0,8,0,8]} 1. e4 {[%emt 0:00:04]} e5 {[%emt 0:00:16]} 2. Nf3 {[%emt 0:00:07]} Nc6 {[%emt 0:00:05]} 3. Bb5 {[%emt 0:00:05]} Nf6 {[%emt 0:00:11]} 4. d3 {[%emt 0:00:06]} Bc5 {[%emt 0:00:06]} 5. c3 {[%emt 0:00:05]} O-O {[%emt 0:00:38]} 6. O-O {[%emt 0:00:08]} d6 {[%emt 0:00:05]} 7. h3 {[%emt 0:00:05]} a6 {[%emt 0:02:42]} 8. Ba4 {[%emt 0:00:15]} h6 {[%emt 0:00:16]} 9. Re1 {[%emt 0:01:55]} Re8 {[%emt 0:00:14]} 10. Nbd2 {[%emt 0:02:10][%cal Bb1d2,Bd2f1,Bf1e3,Be3c2,Bc2b4][%mdl 32]} b5 {[%emt 0:00:25]} 11. Bc2 {[%emt 0:01:33]} a5 {[%emt 0:00:14]} 12. Nf1 {[%emt 0:01:05]} d5 {[%emt 0:00:14]} 13. d4 {[%emt 0:06:36] [#] Hoping for exd5.} dxe4 {[%emt 0:00:38]} 14. dxc5 {[%emt 0:06:48] N3d2 is the strong threat.} Qxd1 {[%emt 0:00:08]} 15. Bxd1 {[%emt 0:00:06]} exf3 {[%emt 0:00:05]} 16. Bxf3 {[%emt 0:00:04]} Bb7 {[%emt 0:00:06]} 17. Ne3 {[%emt 0:04:32]} a4 {[%emt 0:12:35]} 18. Nc2 {[%emt 0:03:57]} Na5 {[%emt 0:02:22][%cal Bc6a5,Ba5c4,Bc4b2][%mdl 32]} 19. Be2 {[%emt 0:02:12]} Be4 {[%emt 0:00:38]} 20. Nb4 {[%emt 0:07:02]} c6 {[%emt 0:01:30]} 21. Bf1 {[%emt 0:00:28]} Rac8 {[%emt 0:13:00]} 22. Be3 {[%emt 0:05:57]} Bd5 {[%emt 0:02:52]} 23. g4 {[%emt 0:08:11]} Nc4 {[%emt 0:07:17]} 24. Rab1 {[%emt 0:01:36]} Be4 {[%emt 0:06:13] aiming for ...Nxe3.} 25. Rbd1 {[%emt 0:17:58]} Nxb2 {[%emt 0:03:21]} 26. Rd6 {[%emt 0:00:05] Black must now prevent Bc1.} Re6 {[%emt 0:24:01]} 27. Rxe6 {[%emt 0:01:41]} ({White should try} 27. g5 $15 hxg5 28. Bxg5) 27... fxe6 $17 {[%emt 0:02:08]} 28. g5 {[%emt 0:00:02] [#]} hxg5 {[%emt 0:00:30]} 29. Bxg5 {[%emt 0:00:02]} Bf5 {[%emt 0:12:19]} 30. Rxe5 {[%emt 0:01:02]} Ne4 {[%emt 0:00:26]} (30... Nd5 $15 31. Nxd5 cxd5) 31. Be3 $1 $11 {[%emt 0:01:19] The position is equal.} Nc4 {[%emt 0:00:20]} ({Much worse is} 31... Nxc3 $6 32. Bd4 Nbd1 33. Bg2 $16) 32. Bxc4 {[%emt 0:00:06]} bxc4 {[%emt 0:00:04]} 33. Bd4 {[%emt 0:00:51]} Ng5 {[%emt 0:01:18]} 34. Kg2 {[%emt 0:00:46] Repels Nf3} Bxh3+ {[%emt 0:00:14]} 35. Kg3 {[%emt 0:00:07]} (35. Kh2 $5 Bf5 $8 36. Kg3 $15) 35... Bf5 {[%emt 0:00:04]} 36. f3 {[%emt 0:00:23]} Kf7 {[%emt 0:01:13]} 37. Re2 {[%emt 0:08:38]} Nh7 {[%emt 0:08:28]} 38. Rd2 {[%emt 0:01:18]} Nf6 {[%emt 0:04:43]} 39. Bxf6 {[%emt 0:01:25]} Kxf6 {[%emt 0:02:29][%mdl 4096] Endgame. KRB-KRN} 40. Rd6 {[%emt 0:00:28][%cal Oa2a3]} a3 {[%emt 0:00:09]} (40... Bb1 41. a3 $14 (41. Nxc6 Bxa2 42. Nd4 Rxc5 $11)) 41. Nxc6 {[%emt 0:00:33]} Bb1 {[%emt 0:04:42]} 42. Nd4 {[%emt 0:01:18]} Rxc5 {[%emt 0:05:36]} 43. Rxe6+ {[%emt 0:00:29]} ({Reject} 43. Nxe6 Re5 44. Nd4+ Kf7 $17) 43... Kf7 {[%emt 0:00:03]} 44. Ra6 {[%emt 0:00:09]} Rg5+ {[%emt 0:00:26]} 45. Kf2 {[%emt 0:09:41]} Bxa2 {[%emt 0:00:54]} 46. Rxa3 {[%emt 0:00:05]} Bb1 {[%emt 0:00:04]} 47. Ra7+ {[%emt 0:00:16]} Kf6 {[%emt 0:00:40]} 48. Ra6+ {[%emt 0:00:06]} Kf7 {[%emt 0:00:03]} 49. f4 {[%emt 0:00:35]} Rg4 {[%emt 0:01:35]} 50. Kf3 {[%emt 0:00:51]} Rg1 {[%emt 0:00:39]} 51. Ke3 {[%emt 0:04:07]} g5 {[%emt 0:01:04]} 52. Ra7+ {[%emt 0:01:04]} Kf6 {[%emt 0:00:15]} 53. Ra6+ {[%emt 0:00:04]} Kf7 {[%emt 0:00:05]} 54. Ra7+ {[%emt 0:00:24]} Kf6 {[%emt 0:00:06]} 55. Ra6+ {[%emt 0:00:01]} Kf7 {Weighted Error Value: White=0.05 (flawless) /Black=0.04 (flawless) .  Mistake:       	White=1     	Black=1      Inaccurate:     	White=2     	Black=2      OK:         	White=23    	Black=29     Best:        	White=1     	Black=3      Strong:       	White=1     	---} 1/2-1/2

[Event "GCT Superbet Romania 2024"]
[Site "Bucharest"]
[Date "2024.06.29"]
[Round "4.2"]
[White "Caruana, Fabiano"]
[Black "Deac, Bogdan-Daniel"]
[Result "1-0"]
[ECO "E29"]
[WhiteElo "2805"]
[BlackElo "2680"]
[Annotator "TA"]
[PlyCount "67"]
[EventDate "2024.06.24"]
[EventType "tourn"]
[EventCountry "ROU"]
[SourceTitle "playchess.com"]
[Source "ChessBase"]
[SourceQuality "1"]
[TimeControl "7200+30"]

{[%evp 13,67,0,7,-37,-43,-50,0,-11,21,-14,0,0,0,0,16,15,14,7,0,0,8,23,29,28,30,45,47,55,80,80,80,80,87,87,89,77,81,83,83,86,98,97,83,78,87,86,99,92,139,146,186,189,198,194,595,583]} 1. d4 {[%emt 0:00:03]} Nf6 {[%emt 0:00:02]} 2. c4 {[%emt 0:00:05]} e6 {[%emt 0:00:04]} 3. Nc3 {[%emt 0:00:04]} Bb4 {[%emt 0:00:05]} 4. e3 {[%emt 0:00:04]} O-O {[%emt 0:00:24]} 5. a3 {[%emt 0:00:06]} Bxc3+ {[%emt 0:00:21]} 6. bxc3 {[%emt 0:00:05]} c5 {[%emt 0:00:17]} 7. Bd3 {[%emt 0:00:08]} Nc6 {[%emt 0:01:07]} 8. Rb1 {[%emt 0:00:11]} d6 {[%emt 0:17:14]} 9. Ne2 {[%emt 0:00:26]} e5 {[%emt 0:01:00]} 10. O-O {[%emt 0:07:48] The position is equal.} Re8 {[%emt 0:24:41][%cal Bf8e8,Be8e5,Be5a5][%mdl 32]} 11. f3 {[%emt 0:14:55]} b6 {[%emt 0:15:51]} 12. e4 {[%emt 0:21:05]} cxd4 {[%emt 0:07:35]} 13. cxd4 {[%emt 0:00:05]} Nxd4 {[%emt 0:00:30]} 14. Nxd4 {[%emt 0:00:09]} exd4 {[%emt 0:00:03]} 15. Bg5 {[%emt 0:09:55]} Re5 {[%emt 0:07:37]} 16. Bh4 {[%emt 0:09:44]} Qe7 {[%emt 0:17:51]} 17. Be2 {[%emt 0:10:28]} Ra5 {[%emt 0:06:47]} 18. Rb3 {[%emt 0:05:14]} Ba6 {[%emt 0:01:06]} 19. Qxd4 {[%emt 0:03:15]} Qe5 {[%emt 0:00:33]} 20. Rd1 {[%emt 0:04:37]} Qxd4+ {[%emt 0:03:12]} 21. Rxd4 {[%emt 0:00:04]} Ne8 {[%emt 0:00:04]} 22. Be1 {[%emt 0:07:51]} Rc5 {[%emt 0:01:01]} 23. Bb4 {[%emt 0:00:45]} Rc6 {[%emt 0:00:34]} 24. f4 {[%emt 0:00:39]} Rac8 {[%emt 0:02:47]} 25. Rc3 {[%emt 0:01:12]} R8c7 {[%emt 0:06:18]} 26. Kf2 {[%emt 0:03:14][%cal Bg1f2,Bf2e3,Be3f4][%mdl 32]} h5 {[%emt 0:06:07]} 27. h3 {[%emt 0:04:40] White is much more active.} g6 {[%emt 0:01:26]} 28. a4 {[%emt 0:01:06]} Rc8 {[%emt 0:01:02]} 29. Ke3 {[%emt 0:02:32]} Bb7 {[%emt 0:00:29]} 30. f5 {[%emt 0:05:58]} gxf5 {[%emt 0:02:14]} (30... R8c7 $142 31. Kf4 Kg7) 31. exf5 $16 {[%emt 0:00:12]} Nf6 {[%emt 0:05:06] [#]} 32. Kf4 $1 {[%emt 0:04:03]} (32. Rxd6 $2 {loses.} Rxd6 33. Bxd6 Re8+ (33... Bxg2 34. Be5 $11) (33... Nd5+ 34. cxd5 Rxc3+ 35. Kd4 $17) 34. Kd3 Rd8 $19 (34... Bxg2 35. Bc7 $17) (34... Ne4 $2 35. Bb4 $19)) 32... d5 {[%emt 0:00:17]} 33. Be7 {[%emt 0:06:57] Rg3+ is the strong threat.} ({Stronger than} 33. Rg3+ Kh7 $11) 33... Re8 $2 {[%emt 0:02:09]} (33... Ne4 {is tougher.} 34. Re3 R6c7) 34. Re3 {[%emt 0:00:45] Weighted Error Value: White=0.04 (flawless) /Black=0.28 (precise) .  Mistake:       	---       	Black=2      Inaccurate:     	White=1     	Black=2      OK:         	White=15    	Black=5      Best:        	White=1     	---} 1-0

[Event "GCT Superbet Romania 2024"]
[Site "Bucharest"]
[Date "2024.06.29"]
[Round "4.3"]
[White "Abdusattorov, Nodirbek"]
[Black "Vachier-Lagrave, Maxime"]
[Result "1/2-1/2"]
[ECO "B90"]
[WhiteElo "2766"]
[BlackElo "2732"]
[Annotator "TA"]
[PlyCount "94"]
[EventDate "2024.06.24"]
[EventType "tourn"]
[EventCountry "ROU"]
[SourceTitle "playchess.com"]
[Source "ChessBase"]
[SourceQuality "1"]
[TimeControl "7200+30"]

{[%evp 9,94,29,19,0,11,7,11,15,10,3,7,0,25,10,37,-7,0,0,6,-77,-91,-116,-84,-118,-45,-39,-4,-16,-34,-24,0,12,31,-28,0,0,-21,-20,-8,0,0,0,0,-27,0,0,-6,-21,-17,-15,-13,-58,0,0,-4,0,0,0,0,0,0,0,0,0,0,0,0,0,0,0,0,-47,0,0,0,0,0,0,0,0,0,0,0,0,0,0,0]} 1. e4 {[%emt 0:00:13]} c5 {[%emt 0:00:04]} 2. Nf3 {[%emt 0:00:18]} d6 {[%emt 0:00:03]} 3. d4 {[%emt 0:00:09]} cxd4 {[%emt 0:00:02]} 4. Nxd4 {[%emt 0:00:06]} Nf6 {[%emt 0:00:04]} 5. Nc3 {[%emt 0:00:11]} a6 {[%emt 0:00:03]} 6. Qd3 {[%emt 0:00:08]} Nbd7 {[%emt 0:02:15]} 7. Be2 {[%emt 0:00:08]} b5 {[%emt 0:00:13]} 8. O-O {[%emt 0:00:07]} Bb7 {[%emt 0:03:26]} 9. b4 {[%emt 0:01:35] Against Nc5} e6 {[%emt 0:08:50][%cal Be7e6,Be6e5][%mdl 32]} 10. a4 {[%emt 0:02:03]} bxa4 {[%emt 0:01:44]} 11. Qg3 {[%emt 0:00:08]} Qc8 {[%emt 0:14:54]} 12. Ra3 {[%emt 0:22:06]} (12. Nxa4 Nxe4 13. Qg4 h5 $15) 12... h5 {[%emt 0:10:25]} 13. h4 {[%emt 0:13:30]} e5 {[%emt 0:07:58]} 14. Nf3 {[%emt 0:04:25]} (14. Nf5 $11 {remains equal.}) 14... Bxe4 $17 {[%emt 0:04:08]} 15. Ng5 {[%emt 0:02:44] [#]} Bc6 {[%emt 0:03:51]} 16. Nxa4 {[%emt 0:01:55]} Be7 {[%emt 0:02:17]} (16... d5 $17 17. Nc5 Bxc5 18. bxc5 O-O) 17. c4 $15 {[%emt 0:00:58]} Rb8 {[%emt 0:06:15]} 18. Bd2 {[%emt 0:05:31]} O-O {[%emt 0:02:36]} 19. Nc3 {[%emt 0:00:02] Repels d5} Nb6 {[%emt 0:03:26]} 20. Rc1 {[%emt 0:06:13]} Bb7 {[%emt 0:07:01]} 21. Qd3 {[%emt 0:04:58]} (21. Nd1 $1 $14) 21... Qc6 {[%emt 0:02:58]} 22. Bf3 {[%emt 0:07:29] Active counter play!} Qxc4 {[%emt 0:00:42]} 23. Nd5 $1 {[%emt 0:00:35]} Bxd5 {[%emt 0:03:56][%cal Bb7d5,Bd5c4,Bc4b5][%mdl 32]} 24. Rxc4 {[%emt 0:00:03]} Bxc4 {[%emt 0:00:08]} 25. Qc2 {[%emt 0:00:01]} g6 {[%emt 0:01:45]} 26. Be3 {[%emt 0:01:09] [#] Strongly threatening Bxb6.} Bb5 {[%emt 0:07:21]} 27. Bxb6 {[%emt 0:09:21]} Rxb6 {[%emt 0:00:33]} 28. Ne6 {[%emt 0:00:24]} Rfb8 {[%emt 0:05:08] And now ...e4 would win.} (28... fxe6 $2 {too greedy.} 29. Qxg6+ Kh8 30. Qh6+ Kg8 (30... Nh7 $2 31. Be4 $18) 31. Bd1 $18) 29. Nc7 $1 {[%emt 0:00:37]} Kg7 {[%emt 0:03:07]} 30. Nd5 {[%emt 0:14:04]} Rc6 {[%emt 0:02:46]} (30... Nxd5 $15 31. Bxd5 Be8 (31... Bxh4 32. Qc7 $11)) 31. Qd2 $11 {[%emt 0:02:57]} Nxd5 {[%emt 0:00:31]} 32. Bxd5 {[%emt 0:00:06]} Rc7 {[%emt 0:01:32]} 33. Rc3 $1 {[%emt 0:00:08]} Rxc3 {[%emt 0:05:01]} 34. Qxc3 {[%emt 0:00:08]} Bxh4 {[%emt 0:00:07]} 35. Qc7 {[%emt 0:03:07][%csl LRb8,LRd6,LRf7]} Rf8 {[%emt 0:00:09]} 36. g3 {[%emt 0:02:12]} Bf6 {[%emt 0:01:38]} 37. Kg2 {[%emt 0:00:06]} h4 {[%emt 0:02:55]} 38. gxh4 {[%emt 0:04:53]} Bxh4 {[%emt 0:00:09]} 39. f3 {[%emt 0:01:20]} Bg5 {[%emt 0:05:14]} 40. Kf2 {[%emt 0:02:17]} (40. Bb3 $11) 40... Bf4 {[%emt 0:01:37]} (40... Bd8 $1 $15 41. Qxd6 Bh4+ 42. Kg2 Re8) 41. Qxd6 {[%emt 0:00:08] The position is equal.} Rc8 {[%emt 0:02:50] ...Rc2+ would now be deadly.} 42. Qe7 $1 {[%emt 0:00:07]} Rc2+ {[%emt 0:01:33]} 43. Kg1 {[%emt 0:00:05]} Rc1+ {[%emt 0:00:19]} 44. Kg2 {[%emt 0:00:17]} Rc2+ {[%emt 0:00:03]} 45. Kg1 {[%emt 0:00:37] The board is on fire.} Rc1+ {[%emt 0:00:10]} 46. Kg2 {[%emt 0:00:06]} Rc2+ {[%emt 0:00:04]} 47. Kg1 {[%emt 0:00:04]} Rc1+ {[%emt 0:00:13] Weighted Error Value: White=0.09 (flawless) /Black=0.08 (flawless) .  Mistake:       	White=3     	Black=3      Inaccurate:     	White=3     	Black=3      OK:         	White=19    	Black=14     Best:        	White=4     	Black=1      Strong:       	White=4     	---} 1/2-1/2

[Event "GCT Superbet Romania 2024"]
[Site "Bucharest"]
[Date "2024.06.29"]
[Round "4.4"]
[White "Firouzja, Alireza"]
[Black "Gukesh D"]
[Result "1/2-1/2"]
[ECO "D20"]
[WhiteElo "2737"]
[BlackElo "2763"]
[Annotator "TA"]
[PlyCount "61"]
[EventDate "2024.06.24"]
[EventType "tourn"]
[EventCountry "ROU"]
[SourceTitle "playchess.com"]
[Source "ChessBase"]
[SourceQuality "1"]
[TimeControl "7200+30"]

{[%evp 18,61,46,36,56,0,0,22,4,21,20,0,0,0,0,0,0,0,0,0,0,0,5,0,0,0,0,0,0,0,0,0,0,0,264,0,0,0,0,0,0,0,0,0,0,0]} 1. d4 {[%emt 0:00:01]} d5 {[%emt 0:00:06]} 2. c4 {[%emt 0:00:06]} dxc4 {[%emt 0:00:05]} 3. e4 {[%emt 0:00:05][%cal Be2e4,Be4e5][%mdl 32]} e5 {[%emt 0:00:04]} 4. Nf3 {[%emt 0:00:06]} exd4 {[%emt 0:00:06]} 5. Bxc4 {[%emt 0:00:09]} Bb4+ {[%emt 0:00:04]} 6. Nbd2 {[%emt 0:01:23][%cal Bb1d2,Bd2b3,Bb3d4,Bd4f5][%mdl 32]} Nc6 {[%emt 0:00:06]} 7. O-O {[%emt 0:00:39]} Nf6 {[%emt 0:00:05]} 8. e5 {[%emt 0:01:26]} Nd5 {[%emt 0:00:06]} 9. Nb3 {[%emt 0:01:33]} Nb6 {[%emt 0:00:07]} 10. Bb5 {[%emt 0:01:58][%cal Rb3d4]} Qd5 {[%emt 0:00:06]} 11. Nbxd4 {[%emt 0:04:11]} O-O {[%emt 0:00:07]} 12. Bxc6 {[%emt 0:04:03]} bxc6 {[%emt 0:00:05]} 13. Qc2 {[%emt 0:00:41][%cal Of1d1]} c5 {[%emt 0:00:49]} 14. Nf5 {[%emt 0:05:56]} c4 {[%emt 0:12:08]} 15. a3 {[%emt 0:02:11]} Bc5 {[%emt 0:03:06]} 16. Be3 {[%emt 0:03:09]} Bxf5 {[%emt 0:04:02]} 17. Qxf5 {[%emt 0:01:03] [#] Rad1 would now be deadly.} Bxe3 {[%emt 0:00:19]} 18. fxe3 {[%emt 0:00:09]} Qe6 {[%emt 0:07:24]} 19. Qxe6 {[%emt 0:13:14]} fxe6 {[%emt 0:00:03]} 20. Nd4 {[%emt 0:10:13]} Nd5 {[%emt 0:18:19]} 21. Rfe1 {[%emt 0:15:08]} Rfb8 {[%emt 0:08:44]} 22. Rac1 {[%emt 0:11:14]} Rxb2 {[%emt 0:04:17]} 23. Rxc4 {[%emt 0:00:17]} Rf8 {[%emt 0:06:10] [#] Strongly threatening ...Rff2.} 24. Nxe6 {[%emt 0:03:45]} Nxe3 $1 {[%emt 0:02:18]} 25. Rxc7 {[%emt 0:01:28][%cal Oe6f8]} Rxg2+ {[%emt 0:04:20]} 26. Kh1 {[%emt 0:00:05]} Rff2 {[%emt 0:00:57] The position is equal.} 27. Rxe3 {[%emt 0:02:37]} Rxh2+ {[%emt 0:00:10]} 28. Kg1 {[%emt 0:00:01]} Rhg2+ {[%emt 0:00:06]} 29. Kh1 {[%emt 0:00:04]} Rh2+ {[%emt 0:00:05]} 30. Kg1 {[%emt 0:00:02]} Rhg2+ {[%emt 0:00:04]} 31. Kh1 {[%emt 0:00:06] Weighted Error Value: White=0.06 (flawless) /Black=0.01 (flawless) .  Missed win:     	White=1     	---        Inaccurate:     	White=1     	---        OK:         	White=7     	Black=8      Best:        	White=1     	Black=8      Strong:       	---       	Black=1} 1/2-1/2

[Event "GCT Superbet Romania 2024"]
[Site "Bucharest"]
[Date "2024.06.29"]
[Round "4.5"]
[White "Praggnanandhaa R"]
[Black "Giri, Anish"]
[Result "1-0"]
[ECO "D27"]
[WhiteElo "2747"]
[BlackElo "2745"]
[Annotator "TA"]
[PlyCount "159"]
[EventDate "2024.06.24"]
[EventType "tourn"]
[EventCountry "ROU"]
[SourceTitle "playchess.com"]
[Source "ChessBase"]
[SourceQuality "1"]
[TimeControl "7200+30"]

{[%evp 80,159,421,269,295,262,255,156,259,259,259,195,287,287,280,287,287,287,287,287,287,287,328,280,278,278,277,270,268,191,187,184,192,181,174,164,180,175,309,305,390,390,366,204,396,396,397,396,397,397,396,396,402,403,458,461,537,439,543,577,571,563,578,561,563,558,538,549,504,473,2656,1578,3845,1903,2118,2118,1814,1720,1420,1292,1024,1003]} 1. d4 {[%emt 0:00:39]} d5 {[%emt 0:00:06]} 2. c4 {[%emt 0:00:19]} dxc4 {[%emt 0:00:05]} 3. Nf3 {[%emt 0:00:21]} Nf6 {[%emt 0:00:05]} 4. e3 {[%emt 0:00:06]} e6 {[%emt 0:00:05]} 5. Bxc4 {[%emt 0:00:05]} c5 {[%emt 0:00:03]} 6. O-O {[%emt 0:00:14]} a6 {[%emt 0:00:02]} 7. Be2 {[%emt 0:02:47] 7.b3 is a critical line. D27: Queen's Gambit Accepted: Classical main line: 7 e4!? and 7 a4.} Nbd7 {[%emt 0:00:43]} 8. Nbd2 {[%emt 0:00:35]} Be7 {[%emt 0:05:47]} 9. dxc5 {[%emt 0:05:43]} Bxc5 $146 {[%emt 0:06:20]} ({Predecessor:} 9... Nxc5 10. Nc4 O-O 11. Qxd8 Rxd8 12. Bd2 Bd7 13. Ba5 Re8 14. Nb6 Rab8 15. Rfd1 Bc6 {1-0 Keymer,V (2686)-Baburin,A (2400) Olympiad-44 Chennai 2022 (4.1)}) 10. Qc2 {[%emt 0:03:32]} O-O {[%emt 0:02:31]} 11. Rd1 {[%emt 0:05:04]} Qe7 {[%emt 0:11:55]} 12. b3 {[%emt 0:17:06]} b6 {[%emt 0:05:37]} 13. Ne4 {[%emt 0:02:00]} Nxe4 {[%emt 0:07:50]} 14. Qxe4 {[%emt 0:00:31]} Rb8 {[%emt 0:24:48]} 15. Bb2 {[%emt 0:02:59]} Bb7 {[%emt 0:00:25]} 16. Qf4 {[%emt 0:01:25]} Rbd8 {[%emt 0:08:10]} 17. Rac1 {[%emt 0:14:23]} Nf6 {[%emt 0:02:43]} 18. Bd3 {[%emt 0:19:21]} Rd5 {[%emt 0:23:42]} 19. b4 {[%emt 0:09:25]} Bd6 {[%emt 0:17:33]} 20. Bxf6 {[%emt 0:03:51]} Qxf6 {[%emt 0:02:15]} 21. Qxf6 {[%emt 0:00:38]} gxf6 {[%emt 0:00:01]} 22. e4 {[%emt 0:00:20]} Rxd3 {[%emt 0:03:17]} 23. Rxd3 {[%emt 0:00:04]} Bxb4 {[%emt 0:00:06]} 24. Rc4 {[%emt 0:21:25]} a5 {[%emt 0:00:58]} 25. Rd7 {[%emt 0:02:31]} Bc8 {[%emt 0:01:51]} 26. Ra7 {[%emt 0:00:42]} e5 {[%emt 0:01:51]} 27. h3 {[%emt 0:06:20]} Be6 {[%emt 0:00:44]} 28. Rc2 {[%emt 0:00:01]} Rd8 {[%emt 0:00:18]} 29. g4 {[%emt 0:00:56]} Bc5 {[%emt 0:01:14]} 30. Kg2 {[%emt 0:00:15]} Kg7 {[%emt 0:00:39]} 31. Nh4 {[%emt 0:02:03]} h5 {[%emt 0:01:43]} 32. Nf5+ {[%emt 0:02:26]} Bxf5 {[%emt 0:01:56]} 33. gxf5 {[%emt 0:00:05]} Rd4 {[%emt 0:00:11]} 34. Re2 {[%emt 0:00:16]} Rd3 {[%emt 0:01:11]} 35. h4 {[%emt 0:00:05]} Rd1 {[%emt 0:00:34]} 36. Rc2 {[%emt 0:01:03]} Rd4 {[%emt 0:00:27]} 37. f3 {[%emt 0:00:11]} Kf8 {[%emt 0:00:40]} 38. Ra8+ {[%emt 0:00:39]} Ke7 {[%emt 0:00:22]} 39. Ra7+ {[%emt 0:00:50]} Kf8 {[%emt 0:00:23]} 40. Kg3 {[%emt 0:00:22]} a4 {[%emt 0:00:29]} 41. Rg2 {[%emt 0:00:46]} a3 {[%emt 0:00:20]} 42. Kh2 {[%emt 0:00:10]} Rd8 {[%emt 0:00:25]} 43. Kh3 {[%emt 0:00:21]} Bb4 {[%emt 0:00:55]} (43... Rd3 $16 44. Ra8+ Ke7) 44. Rb7 $18 {[%emt 0:03:35]} Bc5 {[%emt 0:00:05]} 45. Rc7 {[%emt 0:00:01]} Be3 {[%emt 0:00:40]} (45... Rd3 {was worth a try.}) 46. Rgc2 $18 {[%emt 0:00:45]} Bc5 {[%emt 0:00:12]} 47. Rc4 {[%emt 0:00:12]} Ra8 {[%emt 0:00:34]} 48. Rb7 {[%emt 0:00:37]} Ke8 {[%emt 0:01:00]} 49. Kg2 {[%emt 0:00:05]} Kf8 {[%emt 0:00:23]} 50. Kf1 {[%emt 0:01:26]} Ra5 {[%emt 0:00:26]} 51. Ke2 {[%emt 0:00:28]} Ra8 {[%emt 0:00:22]} 52. Kd3 {[%emt 0:01:03]} Rd8+ {[%emt 0:00:51]} 53. Kc2 {[%emt 0:00:06]} (53. Ke2 $6 Ra8 54. Rc2 Ke8 $18) 53... Kg7 {[%emt 0:00:11]} 54. Rc3 {[%emt 0:01:36]} Bf2 {[%emt 0:00:54]} 55. Rcc7 {[%emt 0:01:32]} Rf8 {[%emt 0:00:14]} 56. Kd3 {[%emt 0:00:04]} Bxh4 {[%emt 0:00:09]} 57. Ke2 {[%emt 0:00:04]} (57. Rxb6 $6 Bg3 $16) 57... Bg3 {[%emt 0:01:06] [#]} 58. Kf1 $1 {[%emt 0:00:06]} (58. Rxb6 h4 $11) 58... h4 {[%emt 0:00:32]} (58... b5 $142 59. Kg2 (59. Rxb5 h4 $16) 59... Be1) 59. Kg2 $1 $18 {[%emt 0:00:06]} (59. Rxb6 h3 $11) 59... Bf4 {[%emt 0:00:22]} 60. Kh3 {[%emt 0:00:19]} (60. Rxb6 h3+ 61. Kxh3 Rh8+ 62. Kg2 (62. Kg4 Rh2 $11) 62... Rh2+ 63. Kf1 Bg3 $11) 60... Be3 {[%emt 0:00:18]} 61. Rd7 {[%emt 0:01:28]} (61. Kxh4 $142 {Threatens to win with Rd7.} Bf4 62. Kh3 (62. Rxb6 Rh8+ 63. Kg4 Rh2 $11)) 61... Bc5 $2 {[%emt 0:00:47]} (61... Bf2 62. Rd2 Bd4 63. Rg2+ (63. Kxh4 Rh8+ 64. Kg3 Rg8 $18) 63... Kh6 64. Kxh4 Be3) 62. Kxh4 $18 {[%emt 0:00:41]} Rh8+ {[%emt 0:00:32]} 63. Kg3 {[%emt 0:00:07]} Rf8 {[%emt 0:00:02]} 64. Kg2 {[%emt 0:00:16]} Be3 {[%emt 0:00:17]} 65. Kf1 {[%emt 0:00:10]} Bd4 {[%emt 0:01:06]} 66. Ke2 {[%emt 0:00:05]} Bc5 {[%emt 0:00:25]} 67. Kd3 {[%emt 0:00:08]} Bd4 {[%emt 0:00:10]} 68. Kc4 {[%emt 0:01:52]} Rc8+ {[%emt 0:00:08]} 69. Rbc7 {[%emt 0:00:33]} Rf8 {[%emt 0:00:47]} 70. Kb5 {[%emt 0:00:43]} Kg8 {[%emt 0:00:21]} 71. Ra7 {[%emt 0:02:31]} Bc5 {[%emt 0:00:09]} 72. Rab7 {[%emt 0:00:04]} Kg7 {[%emt 0:00:09]} 73. Kc6 {[%emt 0:00:12]} Be3 {[%emt 0:00:48]} 74. Rdc7 {[%emt 0:01:39]} Bd4 {[%emt 0:00:21]} (74... Bc5 $142 75. Ra7 Kg8) 75. Kd7 $18 {[%emt 0:00:37]} Kh6 {[%emt 0:00:32]} 76. Rc8 {[%emt 0:01:20]} Rxc8 {[%emt 0:00:05]} 77. Kxc8 {[%emt 0:00:01]} Kg5 {[%emt 0:00:05]} 78. Kd7 {[%emt 0:01:01]} Kf4 {[%emt 0:00:36]} 79. Kc6 {[%emt 0:00:07]} Kxf3 {[%emt 0:00:03]} 80. Kd5 {[%emt 0:00:03]} ({Weaker is} 80. Rxf7 Kxe4 81. Rxf6 Bc5 $11) 1-0